Cogmind - Beta 9.1 --- EXPLORER MODE // 2019.11.04 @ 21:18:30 Player: sideriver81 Result: Destroyed by D-53 Grenadier with Mini Grenade Launcher Performance ------------- Evolutions (0) 0 Regions Visited (4) 800 Robots Destroyed (26) 130 Value Destroyed (180) 180 Prototype IDs (0) 0 Alien Tech Used (0) 0 Bonus (-47) -47 TOTAL SCORE: 1063 Bonus ------- Follower Combat Kills 7 Friendly Fire -54 Cogmind --------- Core Integrity 0/250 Matter 285/300 Energy 265/265 System Corruption 1% Temperature Cool (0) Location -9/Mines Parts ------- Power (1) Improved Ion Engine Propulsion (2) Utility (3) Medium Storage Unit Targeting Computer Weapon (2) Inventory (8) Aluminum Leg Improved Aluminum Leg Large Storage Unit Large Storage Unit Propulsion Shielding Assault Rifle Grenade Launcher Peak State ------------ Power Ion Engine Propulsion Aluminum Leg Aluminum Leg Utility Medium Storage Unit Targeting Computer Light Armor Plating Weapon Heavy Assault Rifle Grenade Launcher Inventory Improved Ion Engine Aluminum Leg Large Storage Unit Large Storage Unit Propulsion Shielding Light Armor Plating Beam Rifle Assault Rifle [Rating: 10] Favorites ----------- Power Ion Engine Engine Ion Engine Propulsion Aluminum Leg Leg Aluminum Leg Utility Medium Storage Unit Storage Medium Storage Unit Processor Targeting Computer Protection Light Armor Plating Weapon Assault Rifle Energy Gun EM Pulse Gun Ballistic Gun Assault Rifle Launcher Grenade Launcher Build | -11 -10 -10 -10 -9 ------- Run | Scr Mat Min Exi Min Slots Evolved 1 | . 1 . . . Power . | . . . . . Propulsion . | . . . . . Utility 1 | . 1 . . . Weapon . | . . . . . Parts Attached 19 | 6 7 . . 6 Power 2 | . 1 . . 1 Engine 2 | . 1 . . 1 Core . | . . . . . Reactor . | . . . . . Propulsion 4 | 2 1 . . 1 Treads . | . . . . . Leg 4 | 2 1 . . 1 Wheel . | . . . . . Hover . | . . . . . Flight . | . . . . . Utility 7 | 2 4 . . 1 Device . | . . . . . Storage 2 | 1 1 . . . Processor 1 | . 1 . . . Hackware . | . . . . . Protection 4 | 1 2 . . 1 Artifact . | . . . . . Weapon 6 | 2 1 . . 3 Energy Gun 2 | 1 . . . 1 Energy Cannon . | . . . . . Ballistic Gun 3 | 1 1 . . 1 Ballistic Cannon . | . . . . . Launcher 1 | . . . . 1 Special Weapon . | . . . . . Impact Weapon . | . . . . . Slashing Weapon . | . . . . . Piercing Weapon . | . . . . . Special Melee Weapon . | . . . . . Unidentified Prototypes . | . . . . . Parts Lost 8 | . . . . 8 Power 1 | . . . . 1 Propulsion 2 | . . . . 2 Utility 2 | . . . . 2 Weapon 3 | . . . . 3 Highest Loss Streak 7 | . . . . 7 Average Slot Usage (%) 99 | . 100 100 100 82 Engine 11 | . 12 12 12 10 Leg 24 | . 25 25 25 20 Storage 12 | . 12 12 12 12 Processor 12 | . 12 12 12 12 Protection 11 | . 12 12 12 9 Energy Gun 11 | . 12 12 12 2 Ballistic Gun 11 | . 12 12 12 7 Naked Turns . | . . . . . Heaviest Build 22 | 15 20 20 20 22 Greatest Support 20 | 20 20 20 20 20 Greatest Overweight (x) 4 | 3 . . . 4 Average Overweight (x) . | . . . . . Largest Inventory Capacity 8 | 8 8 8 8 8 Average Capacity 7 | 7 8 8 8 8 Most Carried 8 | 8 8 8 8 8 Average Carried 7 | 4 7 7 8 7 Final Capacity 8 | 8 8 8 8 8 Final Carried 8 | 8 8 8 8 7 Class Distribution -------------------- 100% | Mutant Dominant Class ---------------- Mutant | -10/Materials Mutant | -10/Mines Mutant | -10/Exiles Mutant | -9/Mines Resources | -11 -10 -10 -10 -9 ----------- Run | Scr Mat Min Exi Min Matter Collected 454 | 243 61 80 . 70 Remotely . | . . . . . Salvage Created 295 | . 43 214 . 38 Parts 17 | . 1 16 . . Haulers Intercepted . | . . . . . Recyclers Shooed . | . . . . . Parts Field Recycled . | . . . . . Retrieved Matter . | . . . . . Parts Self-Destructed . | . . . . . Prevented . | . . . . . Kills | -11 -10 -10 -10 -9 ------- Run | Scr Mat Min Exi Min Combat Hostiles Destroyed 26 | . 3 7 . 16 Guns 9 | . 1 7 . 1 AOE 17 | . 2 . . 15 Classes Destroyed 3 | . 1 1 . 1 Swarmer 8 | . 3 5 . . Sentry 2 | . . 2 . . Assembled 16 | . . . . 16 Best Kill Streak 16 | . 2 2 . 16 Combat Bots Only 16 | . 2 2 . 16 Max Kills in Single Turn 6 | . 2 1 . 6 Gunslinging . | . . . . . Exploded 6 | . 2 . . 6 Melee . | . . . . . Uniques/NPCs Destroyed . | . . . . . Combat | -11 -10 -10 -10 -9 -------- Run | Scr Mat Min Exi Min Damage Taken 1079 | . 48 108 . 923 Core 257 | . 23 15 . 219 Absorbed by Shields . | . . . . . Core Remaining (%) 100 | 100 . . . . Volleys Fired 28 | . 4 14 1 9 Largest 2 | . 2 2 1 2 Hottest 79 | . 60 60 20 79 Shots Fired 47 | . 8 28 1 10 Gun 42 | . 8 28 1 5 Cannon . | . . . . . Launcher 5 | . . . . 5 Special . | . . . . . Kinetic 23 | . 4 14 1 4 Thermal 1 | . . . . 1 Explosive 5 | . . . . 5 Electromagnetic 18 | . 4 14 . . Robot Hit Streak 14 | . 3 14 . 7 Robot Miss Streak 3 | . 1 3 . 1 Penetration Max . | . . . . . Secondary Targets 2 | . . 2 . . Max Gunslinging Chain 1 | . . 1 . . Shots Hit Robots 34 | . 6 21 . 7 Core Hits 53 | . 3 9 . 41 Critical Hits . | . . . . . Critical Kills . | . . . . . Critical Parts Destroyed . | . . . . . Melee Attacks . | . . . . . Impact . | . . . . . Slashing . | . . . . . Piercing . | . . . . . Sneak Attacks . | . . . . . Combat Hostiles . | . . . . . Follow-up Attacks . | . . . . . Damage Inflicted 1483 | . 130 239 . 1114 Guns 357 | . 67 239 . 51 Cannons . | . . . . . Explosions 1126 | . 63 . . 1063 Melee . | . . . . . Ramming . | . . . . . Kinetic 180 | . 25 104 . 51 Thermal 63 | . 63 . . . Explosive 1063 | . . . . 1063 Electromagnetic 177 | . 42 135 . . Impact . | . . . . . Slashing . | . . . . . Piercing . | . . . . . Highest Corruption 1 | . . . . 1 Average Corruption 1 | . . . . 1 Corruption Purged . | . . . . . Overload Shots . | . . . . . Overflow Damage 29 | . . . . 29 Projectiles . | . . . . . Explosions 29 | . . . . 29 Melee . | . . . . . Knockbacks . | . . . . . Impact . | . . . . . Kinetic . | . . . . . Secondary . | . . . . . Self-Inflicted Damage 68 | . 23 . . 45 Shots 4 | . 1 . . 3 Rammed . | . . . . . Targets Rammed . | . . . . . Kicked . | . . . . . Crushed . | . . . . . Highest Temperature 72 | . 30 72 . 27 Average Temperature 19 | . 12 22 . 15 Received Heat Transfer 65 | . . 45 . 20 Siege Activations . | . . . . . Robots Corrupted . | . . . . . Combat Hostiles . | . . . . . Parts Fried . | . . . . . Impact Corruptions . | . . . . . Robots Melted . | . . . . . Combat Hostiles . | . . . . . Parts Melted . | . . . . . Heat Transferred 100 | . 100 . . . Parts Sabotaged . | . . . . . Parts Stolen . | . . . . . Parts Stripped . | . . . . . Power Chain Reactions 1 | . 1 . . . Missiles Intercepted . | . . . . . Alert | -11 -10 -10 -10 -9 ------- Run | Scr Mat Min Exi Min Peak Influence 164 | . 72 164 . 15 Average Influence 30 | . 52 26 . . Maximum Alert Level . | . . . . . Low Security (%) 100 | . . . . . Level 1 . | . . . . . Level 2 . | . . . . . Level 3 . | . . . . . Level 4 . | . . . . . Level 5 . | . . . . . High Security . | . . . . . Max Security . | . . . . . Squads Dispatched . | . . . . . Investigation . | . . . . . Extermination . | . . . . . Reinforcement . | . . . . . Assault . | . . . . . Garrison . | . . . . . Intercept . | . . . . . Construction Impeded . | . . . . . Haulers Reinforced . | . . . . . Stealth | -11 -10 -10 -10 -9 --------- Run | Scr Mat Min Exi Min Distress Signals 1 | . 1 . . . Communications Jammed . | . . . . . Distress Signals . | . . . . . Times Spotted 36 | . 7 8 . 21 Peak Tracking Total 16 | . 4 2 . 16 Tactical Retreats 3 | . 2 . . 1 Traps | -11 -10 -10 -10 -9 ------- Run | Scr Mat Min Exi Min Traps Triggered . | . . . . . Indirectly . | . . . . . Trap Hack Attempts . | . . . . . Triggered . | . . . . . Disarmed . | . . . . . Reprogrammed . | . . . . . Reused . | . . . . . Traps Extracted . | . . . . . Installed . | . . . . . Triggered . | . . . . . Machines | -11 -10 -10 -10 -9 ---------- Run | Scr Mat Min Exi Min Machines Disabled 1 | . . 1 . . Max in Single Turn 1 | . . 1 . . Machines Sabotaged . | . . . . . Garrisons Compromised . | . . . . . Overloaded Fab Kills . | . . . . . Fab Network Shutdowns . | . . . . . Hacking | -11 -10 -10 -10 -9 --------- Run | Scr Mat Min Exi Min Machines Accessed 8 | . 4 . 4 . Terminals 2 | . 2 . . . Fabricators . | . . . . . Repair Stations 1 | . 1 . . . Recycling Units 1 | . 1 . . . Scanalyzers . | . . . . . Garrison Access . | . . . . . Total Hacks 15 | . 11 . 4 . Successful 13 | . 9 . 4 . Failed 2 | . 2 . . . Catastrophic . | . . . . . Database Lockouts . | . . . . . Manual 7 | . 4 . 3 . Terminals 6 | . 6 . . . Fabricators . | . . . . . Repair Stations 2 | . 2 . . . Recycling Units 3 | . 3 . . . Scanalyzers . | . . . . . Garrison Access . | . . . . . Terminal Hacks 7 | . 3 . 4 . Record 4 | . . . 4 . Terminal Index 1 | . 1 . . . Unreport Threat 1 | . 1 . . . Locate Traps 1 | . 1 . . . Fabricator Hacks . | . . . . . Repair Station Hacks 2 | . 2 . . . Refit 2 | . 2 . . . Recycling Unit Hacks 3 | . 3 . . . Process 1 | . 1 . . . Retrieve Matter 2 | . 2 . . . Scanalyzer . | . . . . . Garrison Access Hacks . | . . . . . Unauthorized Hacks 2 | . 2 . . . Terminals 1 | . 1 . . . Track 1 | . 1 . . . Fabricators . | . . . . . Repair Stations . | . . . . . Recycling Units . | . . . . . Scanalyzers . | . . . . . Garrison Access . | . . . . . Data Cores Recovered . | . . . . . Used . | . . . . . Hacking Detections 3 | . 3 . . . Full Trace Events . | . . . . . Feedback Events . | . . . . . Feedback Blocked . | . . . . . Robot Schematics Acquired . | . . . . . Robots Built . | . . . . . Matter . | . . . . . Time . | . . . . . Total Robot Build Rating . | . . . . . Part Schematics Acquired . | . . . . . Parts Built . | . . . . . Matter . | . . . . . Time . | . . . . . Total Part Build Rating . | . . . . . Parts Repaired . | . . . . . Time . | . . . . . Parts Recycled . | . . . . . Recycled Matter 161 | . 161 . . . Retrieved Matter . | . . . . . Retrieved Components . | . . . . . Parts Scanalyzed . | . . . . . Part Schematics Acquired . | . . . . . Parts Damaged . | . . . . . Bothacking | -11 -10 -10 -10 -9 ------------ Run | Scr Mat Min Exi Min Used RIF Installer . | . . . . . Robots Hacked . | . . . . . Non-combat . | . . . . . Combat . | . . . . . Robot Hacks Applied . | . . . . . Relay Couplers Released . | . . . . . Robots Rewired . | . . . . . Allies Hacked . | . . . . . Hacks Repelled . | . . . . . Allies | -11 -10 -10 -10 -9 -------- Run | Scr Mat Min Exi Min Total Allies 3 | . . 3 . . Largest Group 3 | . . 3 3 3 Highest-Rated Group 40 | . . 40 40 40 Highest-Rated Ally 16 | . . 16 16 16 Total Orders . | . . . . . Ally Attacks 16 | . . 2 . 14 Total Damage 153 | . . 25 . 128 Kills 4 | . . 1 . 3 Allies Corrupted . | . . . . . Allies Melted 1 | . . . . 1 Intel | -11 -10 -10 -10 -9 ------- Run | Scr Mat Min Exi Min Robot Analysis Total . | . . . . . Derelict Logs Recovered . | . . . . . Drone Launches . | . . . . . Drone Recoveries . | . . . . . Exploration | -11 -10 -10 -10 -9 ------------- Run | Scr Mat Min Exi Min Turns Passed 2310 | 83 362 797 963 105 Spaces Moved 1759 | 59 266 587 796 51 Core 34 | 27 . . . 7 Treads . | . . . . . Legs 1725 | 32 266 587 796 44 Wheels . | . . . . . Hover . | . . . . . Flight . | . . . . . Fastest Speed 50 | 50 120 120 120 120 Average Speed 120 | 111 120 120 120 150 Slowest Speed 250 | 200 120 120 120 250 Overloaded Moves . | . . . . . Propulsion Burnouts . | . . . . . Robots Hopped . | . . . . . Cave-ins Triggered . | . . . . . Exploration Rate (%) 48 | 4 34 99 94 13 Regions Visited 4 Branch Regions 3 Pre-discovered Areas . | . . . . . Known Exits Taken 4 | 1 1 1 1 . Unknown Exits Taken . | . . . . . Scrap Searched 1 | . . 1 . . Spaces Dug 7 | . . . . 7 Terrain Destroyed 35 | . 2 . . 33 Melee . | . . . . . Projectile . | . . . . . AOE 35 | . 2 . . 33 Actions | -11 -10 -10 -10 -9 --------- Run | Scr Mat Min Exi Min Total 1902 | 74 303 653 803 69 Wait 66 | . 14 45 7 . Move 1755 | 58 265 586 795 51 Hop . | . . . . . Pick Up 20 | 10 4 4 . 2 Fast Attach 9 | 4 5 . . . Attach 7 | 2 2 . . 3 Detach . | . . . . . Swap 3 | . . . . 3 Drop 14 | . 9 4 . 1 Fire 28 | . 4 14 1 9 Melee . | . . . . . Ram . | . . . . . Kick . | . . . . . Crush . | . . . . . Escape Stasis . | . . . . . Rewire . | . . . . . Trap . | . . . . . Miscellaneous . | . . . . . Route ------- -11/Scrapyard -10/Materials (discovered 2 exits: *Mat / *Min) -10/Mines (discovered 3 exits: *Mat x2 / *Exi) -10/Exiles (discovered 2 exits: *Min x2) -9/Mines History --------- Turn | Location | Event 5 | -11/Scrapyard | Identified exit to Materials 5 | -11/Scrapyard | Discovered exit to Materials (range 15) 84 | -11/Scrapyard | Entered Materials 84 | -10/Materials | Evolved 1 slot: Utility x1 309 | -10/Materials | Build established: Mutant 312 | -10/Materials | Identified exit to Mines 312 | -10/Materials | Discovered exit to Mines (range 15) 370 | -10/Materials | Identified exit to Materials 370 | -10/Materials | Discovered exit to Materials (range 16) 446 | -10/Materials | Entered Mines 470 | -10/Mines | Met a Derelict bent on vengeance 485 | -10/Mines | Discovered exit to Materials (range 8) 790 | -10/Mines | Discovered exit to Materials (range 6) 874 | -10/Mines | Deemed a non-threat by the Exiles lab entrance 875 | -10/Mines | Identified exit to Exiles 875 | -10/Mines | Discovered exit to Exiles (range 5) 1004 | -10/Mines | Assisted by bots powering up and referring to "LRC-V3" 1243 | -10/Mines | Entered Exiles 1243 | -10/Exiles | Found Exiles lab abandoned 1243 | -10/Exiles | Accompanied by 3 allies 1662 | -10/Exiles | Identified exit to Mines 1662 | -10/Exiles | Discovered exit to Mines (range 12) 1905 | -10/Exiles | Discovered exit to Mines (range 14) 2206 | -10/Exiles | Entered Mines 2206 | -9/Mines | Accompanied by 3 allies 2207 | -9/Mines | Assembled infested the area 2249 | -9/Mines | Destroyed 16 combat bots 2286 | -9/Mines | Core integrity fell below 50% 2305 | -9/Mines | Core integrity fell below 20% 2311 | -9/Mines | Destroyed by D-53 Grenadier with Mini Grenade Launcher Last Messages --------------- 02262_ R-06 Scavenger destroyed. 02264_ Trooper 1a destroyed. 02266_ The unstable cave ceiling collapses. 02266_ Beam Rifle destroyed. 02268_ The unstable cave ceiling collapses. 02270_ Lgt. Armor Plating destroyed. 02271_ U-05 Engineer lays Concrete. 02275_ Ion Engine destroyed. 02280_ U-05 Engineer lays Concrete. 02281_ The unstable cave ceiling collapses. 02282_ U-05 Engineer lays Concrete. 02285_ U-05 Engineer builds a Wall. 02286_ Acquired Imp. Aluminum Leg. 02287_ Hvy. Assault Rifle destroyed. 02291_ The unstable cave ceiling collapses. 02293_ Aluminum Leg destroyed. 02293_ Lgt. Armor Plating destroyed. 02294_ The unstable cave ceiling collapses. 02294_ Aluminum Leg destroyed. 02296_ The unstable cave ceiling collapses. Map ----- +----------------------------------------------------+ | | | | | | | | | | | | | | | | | | | | | | | | | | | | | | | | | | | | | | | | | | | ??????### # # # ##????????????????????? | | ???#### # # # #????????????????????? | | ??## ## ##???????????????????? | | ??# d #???????????????????? | | ??# d @ #???????????????????? | | ??# # #???????????????????? | | ??# #???????????????????? | | ??# # # #???????????????????? | | ??## ## ### ## ## #???????????????????? | | ???# #####?######??#???????????????????? | | ???### #????????????????????????????????? | | ???? " #????????????????????????????????? | | ???## #????????????????????????????????? | | ????# ########?????????????????????????? | | ????# #????????????????????????? | | ????# % ??????????????????????? | | ????## ########## ???????????????????????? | | ????# ! ##?????????????????????????????????? | | ????## ##??????????????????????????????????? | | ????## ##???????????????????????????????????? | | ????# # #????????????????????????????????????? | | ???## #????????????????????????????????????? | | ???# # # ##????????????????????????????????????? | | ???### ##????????????????????????????????????? | | ????# #????????????????????????????????????? | | ????# # ###??????????????????????????????????? | | ????# ! = ##?????????????????????????????????? | | ????#### #?????????????????????????????????? | | ???????##= #?????????????????????????????????? | +----------------------------------------------------+ Best States ------------- Heat Dissipation 25 Energy Generation 12 Energy Capacity 265 Matter Stores 300 Matter Capacity 300 Sight Range 16 Terrain Scan Density 10 Armor Coverage 150 Resistance: KI 35 Resistance: TH 35 Resistance: EX 35 Resistance: EM 35 Resistance: I 35 Resistance: S 35 Resistance: P 35 Evasion (%) 40 Targeting Accuracy 5 Item Schematics ----------------- None Robot Schematics ------------------ None Fabricated ------------ Nothing Alien Tech Used ----------------- None Achievements -------------- Exterminator Quick And Dirty Challenges ------------ None Game ------ Seed SlugMatterBlaster Manual? 0 Play Time 00:24:07 Cumulative 51.9 hours Start 2019.11.04 @ 19:28:20 End 2019.11.04 @ 21:18:30 Sessions 2 Manual Loads 0 Difficulty Explorer Special Mode None Game No. 15 Rogue -13 Adventurer 14 Explorer 1 Win Type - Total 1 Types 1/0/0/0/0/0/0 Lore% 16 Gallery% 39 Achievement% 33 Wizard Run 0 Options --------- ASCII 0 Keyboard 0 Movement Numpad Keybinds 0 Fullscreen 0 Font 20/Terminus Map View 76x50 Tactical HUD 1 Map Filters NONE Filters NONE Steam 1 RUN: f3ac7dc0-cff7-46a4-82be-af7d4dbd343e